fUSD/lending_fUSD_20250826
["ID","MTS","AMOUNT","RATE_DAILY","PERIOD"]
[381412101,1756187502551,-158.73205,0.00016986,2]
[381412102,1756187502560,-281.644923,0.00016986,2]
[381412103,1756187502571,-687.47,0.00016986,2]
[381412104,1756187502580,-758.77,0.00016986,2]
[381412105,1756187502590,-158.73205,0.00016986,2]
[381412106,1756187502599,-400.0,0.00016986,2]
[381412107,1756187502611,-281.644923,0.00016986,2]
[381412108,1756187502621,-1327.91,0.00016986,2]
[381412109,1756187502630,-400.0,0.00016986,2]
[381412110,1756187502639,-281.644923,0.00016986,2]
[381412111,1756187502648,-158.73205,0.00016986,2]
[381412112,1756187502657,-448.35,0.00016986,2]
[381412113,1756187502666,-596.47,0.00016986,2]
[381412114,1756187502676,-2027.77,0.00016986,2]
[381412115,1756187502685,-817.46,0.00016986,2]
[381412116,1756187502695,-847.1,0.00016986,2]
[381412117,1756187502704,-1621.58,0.00016986,2]
[381412118,1756187502714,-614.9,0.00016986,2]
[381412119,1756187502724,-400.0,0.00016986,2]
[381412120,1756187502733,-400.0,0.00016986,2]
[381412121,1756187502742,-782.54,0.00016986,2]
[381412122,1756187502752,-160.0,0.00017,2]
[381412123,1756187502761,-161.0,0.00017,2]
[381412124,1756187502771,-300.0,0.00017,2]
[381412125,1756187502780,-919.05003421,0.00017007,2]
[381412126,1756187502790,-500.0,0.00017011,2]
[381412127,1756187502799,-433.0,0.00017013,2]
[381412128,1756187502808,-725.0,0.0001702,2]
[381412129,1756187502818,-427.0969966,0.00017021,2]
[381412130,1756187502827,-460.2017041,0.00017021,2]
[381412131,1756187502837,-220.96035242,0.00017021,2]
[381412132,1756187502846,-1000.0,0.00017021,2]
[381412133,1756187502855,-1000.0,0.00017021,2]
[381412134,1756187502865,-1000.0,0.00017021,2]
[381412135,1756187502874,-501.90964086,0.00017021,2]
[381412136,1756187502883,-640.15524874,0.00017021,2]
[381412137,1756187502893,-1000.0,0.00017021,2]
[381412138,1756187502903,-1000.0,0.00017021,2]
[381412139,1756187502912,-433.0,0.00017022,2]
[381412140,1756187502922,-500.0,0.00017052,2]
[381412141,1756187502931,-221.1,0.00017091,2]
[381412142,1756187502940,-500.0,0.00017093,2]
[381412143,1756187502950,-500.0,0.00017134,2]
[381412144,1756187502960,-168.83386485,0.0001716,2]
[381412145,1756187502969,-211.04233107,0.0001716,2]
[381412146,1756187502978,-2500.0,0.00017164,2]
[381412147,1756187502988,-784.05329204,0.00017164,2]
[381412148,1756187502998,-310.18600903,0.00017164,2]
[381412149,1756187503007,-220.12734939,0.00017164,2]
[381412150,1756187503017,-2500.0,0.00017164,2]
[381412151,1756187503026,-1352.9675257,0.00017164,2]
[381412152,1756187503036,-2500.0,0.00017164,2]
[381412153,1756187503046,-2500.0,0.00017164,2]
[381412154,1756187503055,-500.0,0.00017174,2]
[381412155,1756187503066,-413.23070306,0.00017197,2]
[381412156,1756187503076,-4696.57,0.000172,7]
[381412157,1756187503085,-500.0,0.00017215,2]
[381412158,1756187503095,-500.0,0.00017256,2]
[381412159,1756187503105,-500.0,0.00017259,2]
[381412160,1756187503114,-500.0,0.00017259,2]
[381412161,1756187503123,-300.0,0.00017259,2]
[381412162,1756187503132,-305.37895947,0.00017259,2]
[381412163,1756187503142,-300.0,0.00017259,2]
[381412164,1756187503152,-300.0,0.00017259,2]
[381412165,1756187503162,-217.40552407,0.00017259,2]
[381412166,1756187503171,-300.0,0.00017259,2]
[381412167,1756187503180,-305.06011125,0.00017259,2]
[381412168,1756187503190,-300.0,0.00017259,2]
[381412169,1756187503200,-400.0,0.0001726,2]
[381412170,1756187503210,-400.0,0.0001726,2]
[381412171,1756187503220,-400.0,0.0001726,2]
[381412172,1756187503229,-404.56714994,0.0001726,2]
[381412173,1756187503238,-520.22701323,0.0001726,2]
[381412174,1756187503248,-400.0,0.0001726,2]
[381412175,1756187503257,-400.0,0.0001726,2]
[381412176,1756187503266,-400.0,0.0001726,2]
[381412177,1756187503276,-400.0,0.0001726,2]
[381412178,1756187503285,-400.0,0.0001726,2]
[381412179,1756187503295,-400.0,0.0001726,2]
[381412180,1756187503304,-400.0,0.0001726,2]
[381412181,1756187503313,-400.0,0.0001726,2]
[381412182,1756187503323,-905.28,0.0001726,2]
[381412183,1756187503332,-587.72,0.0001726,2]
[381412184,1756187503341,-746.05,0.0001726,2]
[381412185,1756187503350,-329.69003808,0.0001726,2]
[381412186,1756187503360,-400.0,0.0001726,2]
[381412187,1756187503369,-204.12879504,0.0001726,2]
[381412188,1756187503379,-400.0,0.0001726,2]
[381412189,1756187503389,-400.0,0.0001726,2]
[381412190,1756187503399,-1081.06,0.0001726,2]
[381412191,1756187503408,-493.66,0.0001726,2]
[381412192,1756187503418,-485.57,0.0001726,2]
[381412193,1756187503427,-400.0,0.0001726,2]
[381412194,1756187503436,-1145.03,0.0001726,2]
[381412195,1756187503446,-400.0,0.0001726,2]
[381412196,1756187503455,-400.0,0.0001726,2]
[381412197,1756187503464,-606.47,0.0001726,2]
[381412198,1756187503474,-400.0,0.0001726,2]
[381412199,1756187503484,-400.0,0.0001726,2]
[381412200,1756187503494,-522.96,0.0001726,2]
[381412201,1756187503504,-619.8,0.0001726,2]
[381412202,1756187503513,-400.0,0.0001726,2]
[381412203,1756187503522,-400.0,0.0001726,2]
[381412204,1756187503532,-417.09,0.0001726,2]
[381412205,1756187503650,-751.49,0.0001726,2]
[381412206,1756187503660,-400.0,0.0001726,2]
[381412207,1756187503670,-401.31,0.0001726,2]
[381412208,1756187503681,-400.0,0.0001726,2]
[381412209,1756187503691,-762.29,0.0001726,2]
[381412210,1756187503701,-400.0,0.0001726,2]
[381412211,1756187503710,-400.0,0.0001726,2]
[381412212,1756187503719,-400.0,0.0001726,2]
[381412213,1756187503728,-669.78,0.0001726,2]
[381412214,1756187503737,-400.0,0.0001726,2]
[381412215,1756187503749,-712.53,0.0001726,2]
[381412216,1756187503761,-400.0,0.0001726,2]
[381412217,1756187503772,-400.0,0.0001726,2]
[381412218,1756187503783,-400.0,0.0001726,2]
[381412219,1756187503793,-400.0,0.0001726,2]
[381412220,1756187503802,-400.0,0.0001726,2]
[381412221,1756187503813,-400.0,0.0001726,2]
[381412222,1756187503823,-455.33,0.0001726,2]
[381412223,1756187503833,-400.0,0.0001726,2]
[381412224,1756187503843,-400.0,0.0001726,2]
[381412225,1756187503855,-400.0,0.0001726,2]
[381412226,1756187503870,-637.5,0.0001726,2]
[381412227,1756187503879,-763.59,0.0001726,2]
[381412228,1756187503890,-400.0,0.0001726,2]
[381412229,1756187503900,-334.65,0.0001726,2]
[381412230,1756187503910,-400.0,0.0001726,2]
[381412231,1756187503921,-400.0,0.0001726,2]
[381412232,1756187503939,-881.6,0.0001726,2]
[381412233,1756187503955,-845.57,0.0001726,2]
[381412234,1756187503965,-1268.43,0.0001726,2]
[381412235,1756187503975,-400.0,0.0001726,2]
[381412236,1756187503984,-479.97,0.0001726,2]
[381412237,1756187503993,-400.0,0.0001726,2]
[381412238,1756187504002,-718.08,0.0001726,2]
[381412239,1756187504012,-670.09,0.0001726,2]
[381412240,1756187504022,-583.2,0.0001726,2]
[381412241,1756187504031,-400.0,0.0001726,2]
[381412242,1756187504040,-151.0,0.0001726,2]
[381412243,1756187504049,-400.0,0.0001726,2]
[381412244,1756187504059,-478.36531202,0.0001726,2]
[381412245,1756187504068,-400.0,0.0001726,2]
[381412246,1756187504078,-400.0,0.0001726,2]
[381412247,1756187504089,-795.58,0.0001726,2]
[381412248,1756187504098,-400.0,0.0001726,2]
[381412249,1756187504107,-400.0,0.0001726,2]
[381412250,1756187504117,-1266.92,0.0001726,2]
[381412251,1756187504126,-400.0,0.0001726,2]
[381412252,1756187504135,-810.52,0.0001726,2]
[381412253,1756187504144,-400.0,0.0001726,2]
[381412254,1756187504154,-400.0,0.0001726,2]
[381412255,1756187504163,-465.3,0.0001726,2]
[381412256,1756187504173,-776.68,0.0001726,2]
[381412257,1756187504183,-1119.7,0.0001726,2]
[381412258,1756187504192,-446.26,0.0001726,2]
[381412259,1756187504202,-540.95,0.0001726,2]
[381412260,1756187504211,-400.0,0.0001726,2]
[381412261,1756187504221,-703.26,0.0001726,2]
[381412262,1756187504231,-171.78,0.0001726,2]
[381412263,1756187504240,-400.0,0.0001726,2]
[381412264,1756187504250,-400.0,0.0001726,2]
[381412265,1756187504260,-614.98,0.0001726,2]
[381412266,1756187504273,-400.0,0.0001726,2]
[381412267,1756187504284,-466.19,0.0001726,2]
[381412268,1756187504294,-679.1,0.0001726,2]
[381412269,1756187504303,-400.0,0.0001726,2]
[381412270,1756187504312,-589.87,0.0001726,2]
[381412271,1756187504322,-450.2,0.0001726,2]
[381412272,1756187504332,-1179.83,0.0001726,2]
[381412273,1756187504343,-400.0,0.0001726,2]
[381412274,1756187504352,-646.44,0.0001726,2]
[381412275,1756187504363,-1055.8,0.0001726,2]
[381412276,1756187504372,-1510.16,0.0001726,2]
[381412277,1756187504382,-1259.41,0.0001726,2]
[381412278,1756187504392,-413.11,0.0001726,2]
[381412279,1756187504402,-400.0,0.0001726,2]
[381412280,1756187504412,-483.6,0.0001726,2]
[381412281,1756187504423,-554.07,0.0001726,2]
[381412282,1756187504432,-400.0,0.0001726,2]
[381412283,1756187504441,-559.26,0.0001726,2]
[381412284,1756187504451,-786.26,0.0001726,2]
[381412285,1756187504462,-400.0,0.0001726,2]
[381412286,1756187504474,-400.0,0.0001726,2]
[381412287,1756187504485,-1298.59,0.0001726,2]
[381412288,1756187504495,-535.4,0.0001726,2]
[381412289,1756187504504,-786.53,0.0001726,2]
[381412290,1756187504514,-1162.36,0.0001726,2]
[381412291,1756187504523,-400.0,0.0001726,2]
[381412292,1756187504532,-1043.59,0.0001726,2]
[381412293,1756187504542,-151.0,0.0001726,2]
[381412294,1756187504551,-400.0,0.0001726,2]
[381412295,1756187504560,-1366.1,0.0001726,2]
[381412296,1756187504571,-400.0,0.0001726,2]
[381412297,1756187504581,-400.0,0.0001726,2]
[381412298,1756187504592,-766.6,0.0001726,2]
[381412299,1756187504604,-554.92,0.0001726,2]
[381412300,1756187504614,-400.0,0.0001726,2]
[381412301,1756187504624,-1003.43,0.0001726,2]
[381412302,1756187504634,-774.71,0.0001726,2]
[381412303,1756187504643,-1471.83,0.0001726,2]
[381412304,1756187504652,-624.45,0.0001726,2]
[381412305,1756187504662,-536.12,0.0001726,2]
[381412306,1756187504671,-400.0,0.0001726,2]
[381412307,1756187504681,-400.0,0.0001726,2]
[381412308,1756187504691,-813.08,0.0001726,2]
[381412309,1756187504701,-400.0,0.0001726,2]
[381412310,1756187504711,-665.22,0.0001726,2]
[381412311,1756187504722,-1586.3,0.0001726,2]
[381412312,1756187504733,-400.0,0.0001726,2]
[381412313,1756187504743,-1102.6,0.0001726,2]
[381412314,1756187504752,-400.0,0.0001726,2]
[381412315,1756187504762,-689.33,0.0001726,2]
[381412316,1756187504772,-400.0,0.0001726,2]
[381412317,1756187504781,-1317.06,0.0001726,2]
[381412318,1756187504791,-400.0,0.0001726,2]
[381412319,1756187504800,-933.43,0.0001726,2]
[381412320,1756187504809,-608.95,0.0001726,2]
[381412321,1756187504818,-785.46,0.0001726,2]
[381412322,1756187504828,-400.0,0.0001726,2]
[381412323,1756187504837,-518.0,0.0001726,2]
[381412324,1756187504847,-1094.15,0.0001726,2]
[381412325,1756187504856,-722.45,0.0001726,2]
[381412326,1756187504865,-819.64,0.0001726,2]
[381412327,1756187504874,-1168.8,0.0001726,2]
[381412328,1756187504884,-603.03,0.0001726,2]
[381412329,1756187504893,-931.86,0.0001726,2]
[381412330,1756187504903,-768.56,0.0001726,2]
[381412331,1756187504912,-634.62,0.0001726,2]
[381412332,1756187504922,-1126.16,0.0001726,2]
[381412333,1756187504932,-400.0,0.0001726,2]
[381412334,1756187504941,-1280.71,0.0001726,2]
[381412335,1756187504951,-400.0,0.0001726,2]
[381412336,1756187504960,-400.0,0.0001726,2]
[381412337,1756187504969,-808.45,0.0001726,2]
[381412338,1756187504979,-281.97,0.0001726,2]
[381412339,1756187504988,-400.0,0.0001726,2]
[381412340,1756187504997,-400.0,0.0001726,2]
[381412341,1756187505007,-400.0,0.0001726,2]
[381412342,1756187505017,-1216.87,0.0001726,2]
[381412343,1756187505027,-401.7,0.0001726,2]
[381412344,1756187505036,-1366.84,0.0001726,2]
[381412345,1756187505047,-788.6,0.0001726,2]
[381412346,1756187505056,-1257.18,0.0001726,2]
[381412347,1756187505065,-582.32,0.0001726,2]
[381412348,1756187505075,-919.63,0.0001726,2]
[381412349,1756187505094,-400.0,0.0001726,2]
[381412350,1756187505107,-400.0,0.0001726,2]
[381412351,1756187505116,-151.0,0.0001726,2]
[381412352,1756187505126,-824.9,0.0001726,2]
[381412353,1756187505136,-151.0,0.0001726,2]
[381412354,1756187505146,-266.059587,0.0001726,2]
[381412355,1756187505155,-400.0,0.0001726,2]
[381412356,1756187505164,-400.0,0.0001726,2]
[381412357,1756187505174,-401.46544858,0.0001726,2]
[381412358,1756187505183,-400.0,0.0001726,2]
[381412359,1756187505193,-400.0,0.0001726,2]
[381412360,1756187505202,-585.28,0.0001726,2]
[381412361,1756187505211,-706.01,0.0001726,2]
[381412362,1756187505221,-400.0,0.0001726,2]
[381412363,1756187505231,-638.53,0.0001726,2]
[381412364,1756187505241,-600.98,0.0001726,2]
[381412365,1756187505250,-151.0,0.0001726,2]
[381412366,1756187505260,-400.0,0.0001726,2]
[381412367,1756187505269,-151.0,0.0001726,2]
[381412368,1756187505278,-400.0,0.0001726,2]
[381412369,1756187505287,-151.0,0.0001726,2]
[381412370,1756187505297,-400.0,0.0001726,2]
[381412371,1756187505307,-627.83,0.0001726,2]
[381412372,1756187505316,-1325.88,0.0001726,2]
[381412373,1756187505326,-524.36195527,0.0001726,2]
[381412374,1756187505335,-400.0,0.0001726,2]
[381412375,1756187505344,-400.0,0.0001726,2]
[381412376,1756187505354,-400.0,0.0001726,2]
[381412377,1756187505364,-1001.68,0.0001726,2]
[381412378,1756187505373,-1244.26,0.0001726,2]
[381412379,1756187505384,-1095.98,0.0001726,2]
[381412380,1756187505395,-1482.58,0.0001726,2]
[381412381,1756187505405,-478.94,0.0001726,2]
[381412382,1756187505414,-400.0,0.0001726,2]
[381412383,1756187505424,-836.83,0.0001726,2]
[381412384,1756187505434,-400.0,0.0001726,2]
[381412385,1756187505443,-151.0,0.0001726,2]
[381412386,1756187505453,-400.0,0.0001726,2]
[381412387,1756187505462,-151.0,0.0001726,2]
[381412388,1756187505471,-719.43,0.0001726,2]
[381412389,1756187505482,-639.26,0.0001726,2]
[381412390,1756187505492,-400.0,0.0001726,2]
[381412391,1756187505501,-3054.08,0.0001726,2]
[381412392,1756187505511,-400.0,0.0001726,2]
[381412393,1756187505520,-1528.2,0.0001726,2]
[381412394,1756187505529,-489.66,0.0001726,2]
[381412395,1756187505539,-400.0,0.0001726,2]
[381412396,1756187505549,-400.0,0.0001726,2]
[381412397,1756187505559,-400.0,0.0001726,2]
[381412398,1756187505569,-401.1968111,0.0001726,2]
[381412399,1756187505579,-161.16,0.0001726,2]
[381412400,1756187505589,-1344.76,0.0001726,2]
[381412401,1756187505599,-1179.01,0.0001726,2]
[381412402,1756187505612,-524.0,0.0001726,2]
[381412403,1756187505621,-400.0,0.0001726,2]
[381412404,1756187505631,-400.0,0.0001726,2]
[381412405,1756187505640,-400.0,0.0001726,2]
[381412406,1756187505650,-400.0,0.0001726,2]
[381412407,1756187505660,-400.0,0.0001726,2]
[381412408,1756187505670,-1086.63,0.0001726,2]
[381412409,1756187505680,-400.0,0.0001726,2]
[381412410,1756187505691,-151.0,0.0001726,2]
[381412411,1756187505701,-400.0,0.0001726,2]
[381412412,1756187505711,-400.0,0.0001726,2]
[381412413,1756187505720,-1089.47,0.0001726,2]
[381412414,1756187505730,-400.0,0.0001726,2]
[381412415,1756187505740,-1722.07,0.0001726,2]
[381412416,1756187505749,-400.0,0.0001726,2]
[381412417,1756187505759,-846.73,0.0001726,2]
[381412418,1756187505768,-973.83,0.0001726,2]
[381412419,1756187505778,-400.0,0.0001726,2]
[381412420,1756187505787,-790.96,0.0001726,2]
[381412421,1756187505797,-151.0,0.0001726,2]
[381412422,1756187505806,-151.0,0.0001726,2]
[381412423,1756187505816,-400.0,0.0001726,2]
[381412424,1756187505825,-400.0,0.0001726,2]
[381412425,1756187505834,-400.0,0.0001726,2]
[381412426,1756187505844,-154.13857773,0.0001726,2]
[381412427,1756187505855,-992.95,0.0001726,2]
[381412428,1756187505865,-669.79,0.0001726,2]
[381412429,1756187505875,-153.25867,0.0001726,2]
[381412430,1756187505885,-633.11,0.0001726,2]
[381412431,1756187505894,-840.73,0.0001726,2]
[381412432,1756187505904,-402.60682773,0.0001726,2]
[381412433,1756187505913,-400.0,0.0001726,2]
[381412434,1756187505922,-1382.39,0.0001726,2]
[381412435,1756187505932,-400.0,0.0001726,2]
[381412436,1756187505941,-13450.79,0.0001726,2]
[381412437,1756187505950,-400.0,0.0001726,2]
[381412438,1756187505960,-309.15740549,0.0001726,2]
[381412439,1756187505970,-400.0,0.0001726,2]
[381412440,1756187505980,-171.590528,0.0001726,2]
[381412441,1756187505989,-400.0,0.0001726,2]
[381412442,1756187505999,-732.44,0.0001726,2]
[381412443,1756187506009,-632.82,0.0001726,2]
[381412444,1756187506018,-796.77,0.0001726,2]
[381412445,1756187506028,-1110.97,0.0001726,2]
[381412446,1756187506038,-400.0,0.0001726,2]
[381412447,1756187506047,-400.0,0.0001726,2]
[381412448,1756187506057,-398.26389334,0.0001726,2]
[381412449,1756187506066,-400.0,0.0001726,2]
[381412450,1756187506076,-531.81,0.0001726,2]
[381412451,1756187506085,-402.13155691,0.0001726,2]
[381412452,1756187506095,-732.64,0.0001726,2]
[381412453,1756187506104,-400.0,0.0001726,2]
[381412454,1756187506115,-426.18,0.0001726,2]
[381412455,1756187506125,-1263.46,0.0001726,2]
[381412456,1756187506135,-155.85447612,0.0001726,2]
[381412457,1756187506145,-400.0,0.0001726,2]
[381412458,1756187506154,-567.184728,0.0001726,2]
[381412459,1756187506164,-468.63,0.0001726,2]
[381412460,1756187506174,-567.184728,0.0001726,2]
[381412461,1756187506184,-400.0,0.0001726,2]
[381412462,1756187506193,-400.0,0.0001726,2]
[381412463,1756187506203,-567.184728,0.0001726,2]
[381412464,1756187506213,-400.0,0.0001726,2]
[381412465,1756187506224,-567.184734,0.0001726,2]
[381412466,1756187506234,-400.0,0.0001726,2]
[381412467,1756187506244,-595.78,0.0001726,2]
[381412468,1756187506253,-384.272693,0.0001726,2]
[381412469,1756187506263,-400.73,0.0001726,2]
[381412470,1756187506272,-244.82941305,0.0001726,2]
[381412471,1756187506281,-1145.6,0.0001726,2]
[381412472,1756187506291,-384.272693,0.0001726,2]
[381412473,1756187506301,-400.0,0.0001726,2]
[381412474,1756187506310,-384.272693,0.0001726,2]
[381412475,1756187506320,-400.0,0.0001726,2]
[381412476,1756187506329,-384.272693,0.0001726,2]
[381412477,1756187506339,-151.0,0.0001726,2]
[381412478,1756187506349,-1266.19,0.0001726,2]
[381412479,1756187506359,-151.0,0.0001726,2]
[381412480,1756187506368,-737.0,0.0001726,2]
[381412481,1756187506378,-582.93,0.0001726,2]
[381412482,1756187506387,-151.0,0.0001726,2]
[381412483,1756187506396,-400.0,0.0001726,2]
[381412484,1756187506405,-1205.89,0.0001726,2]
[381412485,1756187506415,-400.0,0.0001726,2]
[381412486,1756187506426,-151.0,0.0001726,2]
[381412487,1756187506436,-400.0,0.0001726,2]
[381412488,1756187506446,-1072.73,0.0001726,2]
[381412489,1756187506456,-1326.0,0.0001726,2]
[381412490,1756187506466,-400.0,0.0001726,2]
[381412491,1756187506477,-1079.71,0.0001726,2]
[381412492,1756187506487,-1383.15,0.0001726,2]
[381412493,1756187506498,-400.0,0.0001726,2]
[381412494,1756187506507,-718.01,0.0001726,2]
[381412495,1756187506517,-151.0,0.0001726,2]
[381412496,1756187506527,-883.05,0.0001726,2]
[381412497,1756187506536,-400.0,0.0001726,2]
[381412498,1756187506545,-1026.97,0.0001726,2]
[381412499,1756187506555,-400.0,0.0001726,2]
[381412500,1756187506564,-669.92,0.0001726,2]
[381412501,1756187506573,-400.0,0.0001726,2]
[381412502,1756187506583,-1226.51,0.0001726,2]
[381412503,1756187506592,-400.0,0.0001726,2]
[381412504,1756187506602,-400.0,0.0001726,2]
[381412505,1756187506613,-1422.3,0.0001726,2]
[381412506,1756187506623,-400.0,0.0001726,2]
[381412507,1756187506632,-400.0,0.0001726,2]
[381412508,1756187506641,-400.0,0.0001726,2]
[381412509,1756187506651,-400.0,0.0001726,2]
[381412510,1756187506661,-400.0,0.0001726,2]
[381412511,1756187506670,-400.0,0.0001726,2]
[381412512,1756187506680,-650.67,0.0001726,2]
[381412513,1756187506690,-1098.0,0.0001726,2]
[381412514,1756187506699,-400.0,0.0001726,2]
[381412515,1756187506708,-400.0,0.0001726,2]
[381412516,1756187506718,-410.97,0.0001726,2]
[381412517,1756187506728,-878.64,0.0001726,2]
[381412518,1756187506738,-1318.33,0.0001726,2]
[381412519,1756187506748,-999.48,0.0001726,2]
[381412520,1756187506757,-714.24,0.0001726,2]
[381412521,1756187506767,-400.0,0.0001726,2]
[381412522,1756187506776,-400.0,0.0001726,2]
[381412523,1756187506786,-671.42,0.0001726,2]
[381412524,1756187506795,-400.0,0.0001726,2]
[381412525,1756187506804,-400.0,0.0001726,2]
[381412526,1756187506814,-897.8,0.0001726,2]
[381412527,1756187506823,-541.14,0.0001726,2]
[381412528,1756187506832,-457.65,0.0001726,2]
[381412529,1756187506842,-400.0,0.0001726,2]
[381412530,1756187506851,-400.0,0.0001726,2]
[381412531,1756187506861,-400.0,0.0001726,2]
[381412532,1756187506871,-400.0,0.0001726,2]
[381412533,1756187506881,-400.0,0.0001726,2]
[381412534,1756187506890,-409.32,0.0001726,2]
[381412535,1756187506899,-400.0,0.0001726,2]
[381412536,1756187506909,-400.0,0.0001726,2]
[381412537,1756187506918,-400.0,0.0001726,2]
[381412538,1756187506928,-799.13,0.0001726,2]
[381412539,1756187506938,-1200.34,0.0001726,2]
[381412540,1756187506947,-1005.27,0.0001726,2]
[381412541,1756187506956,-792.63,0.0001726,2]
[381412542,1756187506966,-429.83,0.0001726,2]
[381412543,1756187506975,-400.0,0.0001726,2]
[381412544,1756187506985,-497.26,0.0001726,2]
[381412545,1756187506994,-400.0,0.0001726,2]
[381412546,1756187507004,-626.24,0.0001726,2]
[381412547,1756187507013,-400.0,0.0001726,2]
[381412548,1756187507023,-620.32,0.0001726,2]
[381412549,1756187507033,-1548.36,0.0001726,2]
[381412550,1756187507043,-512.46,0.0001726,2]
[381412551,1756187507053,-1918.08,0.0001726,2]
[381412552,1756187507062,-656.04,0.0001726,2]
[381412553,1756187507071,-1594.74,0.0001726,2]
[381412554,1756187507081,-400.0,0.0001726,2]
[381412555,1756187507091,-400.0,0.0001726,2]
[381412556,1756187507100,-442.6,0.0001726,2]
[381412557,1756187507109,-400.0,0.0001726,2]
[381412558,1756187507118,-1015.41,0.0001726,2]
[381412559,1756187507128,-400.0,0.0001726,2]
[381412560,1756187507137,-400.0,0.0001726,2]
[381412561,1756187507148,-400.0,0.0001726,2]
[381412562,1756187507159,-400.0,0.0001726,2]
[381412563,1756187507168,-400.0,0.0001726,2]
[381412564,1756187507178,-400.0,0.0001726,2]
[381412565,1756187507188,-510.12,0.0001726,2]
[381412566,1756187507197,-400.0,0.0001726,2]
[381412567,1756187507207,-400.0,0.0001726,2]
[381412568,1756187507217,-400.0,0.0001726,2]
[381412569,1756187507227,-1209.23,0.0001726,2]
[381412570,1756187507236,-400.0,0.0001726,2]
[381412571,1756187507246,-400.0,0.0001726,2]
[381412572,1756187507256,-740.16,0.0001726,2]
[381412573,1756187507266,-400.0,0.0001726,2]
[381412574,1756187507275,-542.99,0.0001726,2]
[381412575,1756187507285,-685.17,0.0001726,2]
[381412576,1756187507295,-1089.97,0.0001726,2]
[381412577,1756187507305,-1670.18,0.0001726,2]
[381412578,1756187507314,-400.0,0.0001726,2]
[381412579,1756187507324,-718.47,0.0001726,2]
[381412580,1756187507334,-400.0,0.0001726,2]
[381412581,1756187507344,-190.13,0.0001726,2]
[381412582,1756187507353,-400.0,0.0001726,2]
[381412583,1756187507363,-400.0,0.0001726,2]
[381412584,1756187507373,-460.88,0.0001726,2]
[381412585,1756187507383,-400.0,0.0001726,2]
[381412586,1756187507393,-400.0,0.0001726,2]
[381412587,1756187507403,-213.06413843,0.0001726,2]
[381412588,1756187507412,-400.0,0.0001726,2]
[381412589,1756187507422,-400.0,0.0001726,2]
[381412590,1756187507431,-397.74,0.0001726,2]
[381412591,1756187507440,-488.64,0.0001726,2]
[381412592,1756187507450,-400.0,0.0001726,2]
[381412593,1756187507460,-400.0,0.0001726,2]
[381412594,1756187507470,-400.0,0.0001726,2]
[381412595,1756187507480,-400.0,0.0001726,2]
[381412596,1756187507490,-1661.52,0.0001726,2]
[381412597,1756187507500,-400.0,0.0001726,2]
[381412598,1756187507509,-538.73,0.0001726,2]
[381412599,1756187507519,-400.0,0.0001726,2]
[381412600,1756187507537,-400.0,0.0001726,2]